bitfinex/quotes_BTCUSD_20230103
["timestamp","ask_amount","ask_price","bid_price","bid_amount"]
[1672741121700,0.75100267,16765.0,16764.0,0.26544332]
[1672741122225,0.13669367,16765.0,16764.0,0.26544332]
[1672741126938,0.75100267,16765.0,16764.0,0.26544332]
[1672741127431,0.75089517,16765.0,16764.0,0.26544332]
[1672741127937,0.13658617,16765.0,16764.0,0.26544332]
[1672741128706,0.75089517,16765.0,16764.0,0.26544332]
[1672741129220,0.13658617,16765.0,16764.0,0.26544332]
[1672741130494,0.75089517,16765.0,16764.0,0.26544332]
[1672741133336,0.13658617,16765.0,16764.0,0.26544332]
[1672741134368,0.75089517,16765.0,16764.0,0.26544332]
[1672741134631,0.13658617,16765.0,16764.0,0.26544332]
[1672741135151,0.75089517,16765.0,16764.0,0.26544332]
[1672741135950,0.13658617,16765.0,16764.0,0.26544332]
[1672741136725,0.75089517,16765.0,16764.0,0.26544332]
[1672741137249,0.13658617,16765.0,16764.0,0.26544332]
[1672741138026,0.75089517,16765.0,16764.0,0.26544332]
[1672741138278,0.13658617,16765.0,16764.0,0.26544332]
[1672741140688,0.75089517,16765.0,16764.0,0.26544332]
[1672741144254,0.13658617,16765.0,16764.0,0.26544332]
[1672741144524,0.75089517,16765.0,16764.0,0.26544332]
[1672741149555,0.75089517,16765.0,16764.0,0.26532697]
[1672741161334,0.13658617,16765.0,16764.0,0.26532697]
[1672741161586,0.75089517,16765.0,16764.0,0.26532697]
[1672741164933,0.13658617,16765.0,16764.0,0.26532697]
[1672741165767,0.75089517,16765.0,16764.0,0.26532697]
[1672741169395,0.75089517,16765.0,16764.0,0.08742697]
[1672741172848,0.75089517,16765.0,16764.0,0.08733831]
[1672741179128,0.74791362,16765.0,16764.0,0.08733831]
[1672741181687,0.13360462,16765.0,16764.0,0.08733831]
[1672741181955,0.74791362,16765.0,16764.0,0.08733831]
[1672741185584,0.75391362,16765.0,16764.0,0.08733831]
[1672741197606,0.75381055,16765.0,16764.0,0.08733831]
[1672741201888,0.75290823,16765.0,16764.0,0.08733831]
[1672741204364,0.13859923,16765.0,16764.0,0.08733831]
[1672741204615,0.75290823,16765.0,16764.0,0.08733831]
[1672741205114,1.95391385,16765.0,16764.0,0.08733831]
[1672741205370,4.00342729,16765.0,16764.0,0.08733831]
[1672741205672,2.6439441,16765.0,16764.0,0.08733831]
[1672741205926,2.0211351,16765.0,16764.0,0.08733831]
[1672741210194,2.3211351,16765.0,16764.0,0.08733831]
[1672741210952,2.0211351,16765.0,16764.0,0.08733831]
[1672741211949,2.6176151,16765.0,16764.0,0.08733831]
[1672741212224,2.9176151,16765.0,16764.0,0.08733831]
[1672741212468,3.5319241,16765.0,16764.0,0.08733831]
[1672741212707,3.2319241,16765.0,16764.0,0.08733831]
[1672741213209,3.5319241,16765.0,16764.0,0.08733831]
[1672741214717,2.6176151,16765.0,16764.0,0.08733831]
[1672741215215,2.9176151,16765.0,16764.0,0.08733831]
[1672741215733,2.6176151,16765.0,16764.0,0.08733831]
[1672741218271,3.2319241,16765.0,16764.0,0.08733831]
[1672741218520,2.6176151,16765.0,16764.0,0.08733831]
[1672741220025,3.2319241,16765.0,16764.0,0.08733831]
[1672741221053,2.6176151,16765.0,16764.0,0.08733831]
[1672741222812,0.5,16764.0,16763.0,0.0028735]
[1672741223060,2.93817082,16764.0,16763.0,0.0028735]
[1672741223304,2.19539006,16764.0,16763.0,0.0028735]
[1672741223566,1.60607239,16764.0,16763.0,0.0028735]
[1672741223820,3.32272552,16764.0,16763.0,0.0028735]
[1672741224102,2.65471608,16764.0,16763.0,0.0028735]
[1672741225133,3.98374808,16764.0,16763.0,0.00358616]
[1672741226173,4.58026408,16764.0,16763.0,0.00358616]
[1672741227522,5.45991037,16764.0,16763.0,0.00358616]
[1672741228069,5.45991037,16764.0,16763.0,0.08607639]
[1672741228354,4.61067179,16764.0,16763.0,0.08607639]
[1672741228862,5.49031489,16764.0,16763.0,0.08607639]
[1672741229121,5.66851489,16764.0,16763.0,0.08607639]
[1672741232528,5.96028754,16764.0,16763.0,0.08607639]
[1672741232786,5.30398692,16764.0,16763.0,0.08607639]
[1672741233031,4.58946349,16764.0,16763.0,0.08607639]
[1672741233275,5.30409262,16764.0,16763.0,0.08607639]
[1672741233529,5.86840929,16764.0,16763.0,0.08607639]
[1672741233788,6.46881156,16764.0,16763.0,0.08607639]
[1672741234045,6.46880287,16764.0,16763.0,0.08607639]
[1672741234548,5.0248431,16764.0,16763.0,0.08607639]
[1672741235295,3.77806214,16764.0,16763.0,0.08607639]
[1672741235550,3.60076214,16764.0,16763.0,0.08607639]
[1672741236065,3.42256214,16764.0,16763.0,0.08607639]
[1672741236309,2.80825314,16764.0,16763.0,0.08607639]
[1672741239063,2.82619986,16764.0,16763.0,0.08607639]
[1672741241367,2.82619986,16764.0,16763.0,0.08600085]
[1672741246576,3.31668016,16764.0,16763.0,0.08600085]
[1672741246828,3.93098916,16764.0,16763.0,0.08600085]
[1672741247346,4.64637919,16764.0,16763.0,0.08600085]
[1672741247592,4.81063226,16764.0,16763.0,0.08600085]
[1672741247840,5.52602228,16764.0,16763.0,0.08600085]
[1672741255194,4.81063226,16764.0,16763.0,0.08600085]
[1672741255953,5.52566534,16764.0,16763.0,0.08600085]
[1672741256456,4.81063226,16764.0,16763.0,0.08600085]
[1672741256953,5.52565467,16764.0,16763.0,0.08600085]
[1672741257209,5.52571566,16764.0,16763.0,0.08600085]
[1672741257449,4.81063226,16764.0,16763.0,0.08600085]
[1672741260414,4.32015196,16764.0,16763.0,0.08600085]
[1672741261668,3.44050886,16764.0,16763.0,0.08600085]
[1672741262170,2.82619986,16764.0,16763.0,0.08600085]
[1672741262651,3.74050886,16764.0,16763.0,0.08600085]
[1672741262914,3.74050886,16764.0,16763.0,0.0859254]
[1672741264235,4.62165774,16764.0,16763.0,0.0859254]
[1672741264729,3.74050886,16764.0,16763.0,0.0859254]
[1672741265467,3.44050886,16764.0,16763.0,0.0859254]
[1672741266716,4.32179524,16764.0,16763.0,0.0859254]
[1672741267468,3.70748624,16764.0,16763.0,0.0859254]
[1672741268723,4.32179524,16764.0,16763.0,0.0859254]
[1672741272164,3.87975643,16764.0,16763.0,0.0859254]
[1672741272412,4.32198681,16764.0,16763.0,0.0859254]
[1672741274073,3.44050886,16764.0,16763.0,0.0859254]
[1672741277846,4.32205077,16764.0,16763.0,0.0859254]
[1672741278094,4.32205201,16764.0,16763.0,0.0859254]
[1672741284088,4.02205201,16764.0,16763.0,0.0859254]
[1672741284339,2.50825314,16764.0,16763.0,0.0859254]
[1672741284586,2.50825314,16764.0,16763.0,0.08580726]
[1672741288349,2.50825314,16764.0,16763.0,0.26400726]
[1672741289590,2.51413667,16764.0,16763.0,0.26400726]
[1672741290106,1.94589492,16764.0,16763.0,0.26400726]
[1672741295235,1.93751139,16764.0,16763.0,0.26400726]
[1672741296392,2.60388968,16764.0,16763.0,0.26400726]
[1672741296687,2.45579748,16764.0,16763.0,0.26400726]
[1672741298200,1.93751139,16764.0,16763.0,0.26400726]
[1672741301664,2.5151832,16764.0,16763.0,0.26400726]
[1672741301931,2.8151832,16764.0,16763.0,0.26400726]
[1672741302199,3.4294922,16764.0,16763.0,0.26400726]
[1672741302438,3.0825322,16764.0,16763.0,0.08580726]
[1672741302975,3.72301935,16764.0,16763.0,0.08580726]
[1672741303514,3.74096607,16764.0,16763.0,0.08580726]
[1672741304011,3.74010549,16764.0,16763.0,0.08580726]
[1672741304258,4.33662149,16764.0,16763.0,0.08580726]
[1672741305096,3.45593892,16764.0,16763.0,0.08580726]
[1672741305338,3.74095244,16764.0,16763.0,0.08580726]
[1672741305592,3.86125728,16764.0,16763.0,0.08580726]
[1672741305863,4.40090584,16764.0,16763.0,0.08580726]
[1672741306117,4.41885256,16764.0,16763.0,0.08580726]
[1672741306654,2.99856836,16764.0,16763.0,0.08580726]
[1672741306916,4.21647031,16764.0,16763.0,0.08580726]
[1672741307527,3.50600252,16764.0,16763.0,0.07722654]
[1672741307779,2.87826711,16764.0,16763.0,0.07722654]
[1672741308001,3.39622288,16764.0,16763.0,0.07722654]
[1672741308824,3.56325525,16764.0,16763.0,0.07722654]
[1672741309597,2.87826711,16764.0,16763.0,0.07722654]
[1672741309862,3.41478973,16764.0,16763.0,0.07722654]
[1672741310372,2.87826711,16764.0,16763.0,0.07722654]
[1672741311368,3.49001048,16764.0,16763.0,0.07722654]
[1672741311646,3.51020849,16764.0,16763.0,0.07722654]
[1672741312462,3.58786679,16764.0,16763.0,0.07722654]
[1672741312696,4.46818028,16764.0,16763.0,0.07722654]
[1672741313780,3.7585806,16764.0,16763.0,0.07722654]
[1672741314038,4.36349181,16764.0,16763.0,0.07722654]
[1672741314290,3.7585806,16764.0,16763.0,0.07722654]
[1672741314550,3.45560715,16764.0,16763.0,0.07722654]
[1672741314805,4.33580332,16764.0,16763.0,0.07722654]
[1672741316635,4.33572099,16764.0,16763.0,0.07722654]
[1672741320179,3.75838095,16764.0,16763.0,0.07722654]
[1672741320650,4.44402034,16764.0,16763.0,0.07722654]
[1672741321447,4.67505313,16764.0,16763.0,0.07722654]
[1672741322215,4.44402034,16764.0,16763.0,0.07722654]
[1672741331528,4.44402034,16764.0,16763.0,0.07711486]
[1672741334054,3.5639065,16764.0,16763.0,0.07711486]
[1672741334810,4.44433142,16764.0,16763.0,0.07711486]
[1672741335068,3.5639065,16764.0,16763.0,0.07711486]
[1672741335897,4.44439694,16764.0,16763.0,0.07711486]
[1672741336089,3.5639065,16764.0,16763.0,0.07711486]
[1672741338070,4.42702055,16764.0,16763.0,0.07711486]
[1672741338843,4.42702327,16764.0,16763.0,0.07711486]
[1672741340084,3.54595978,16764.0,16763.0,0.07711486]
[1672741341358,4.42752842,16764.0,16763.0,0.07711486]
[1672741342165,3.54595978,16764.0,16763.0,0.07711486]
[1672741342369,2.93165078,16764.0,16763.0,0.07711486]
[1672741342870,3.54595978,16764.0,16763.0,0.07711486]
[1672741346140,4.42769266,16764.0,16763.0,0.07711486]
[1672741351961,4.42769266,16764.0,16763.0,0.07702451]
[1672741352252,2.63165078,16764.0,16763.0,0.25522451]
[1672741352736,2.63165078,16764.0,16763.0,0.98225997]
[1672741352984,1.93751139,16764.0,16763.0,1.59656897]
[1672741353511,1.93751139,16764.0,16763.0,0.98225997]
[1672741354265,1.80151139,16764.0,16763.0,0.98225997]
[1672741354484,1.92651139,16764.0,16763.0,0.98425997]
[1672741354799,1.80151139,16764.0,16763.0,0.98225997]
[1672741355037,1.92651139,16764.0,16763.0,0.98425997]
[1672741356328,1.92651139,16764.0,16763.0,0.25722451]
[1672741358114,1.92651139,16764.0,16763.0,0.25744743]
[1672741359904,1.92651139,16764.0,16763.0,0.98448289]
[1672741360150,1.92651139,16764.0,16763.0,0.25744743]
[1672741360433,2.53033027,16764.0,16763.0,0.98448289]
[1672741361448,2.53033027,16764.0,16763.0,0.25744743]
[1672741361968,1.93381427,16764.0,16763.0,1.59879189]
[1672741363234,1.93381427,16764.0,16763.0,0.87153351]
[1672741363758,2.53033027,16764.0,16763.0,0.25722451]
[1672741370839,1.92651139,16764.0,16763.0,0.25722451]
[1672741372838,1.92651139,16764.0,16763.0,0.25713954]
[1672741374405,1.92651139,16764.0,16763.0,0.25736246]
[1672741374899,1.92651139,16764.0,16763.0,0.25713954]
[1672741379528,3.15888245,16764.0,16763.0,0.25713954]
[1672741380311,3.45888245,16764.0,16763.0,0.25713954]
[1672741383571,2.84457345,16764.0,16763.0,0.25713954]
[1672741385058,2.54457345,16764.0,16763.0,0.25713954]
[1672741391346,2.84457345,16764.0,16763.0,0.25713954]
[1672741391575,3.15888245,16764.0,16763.0,0.25713954]
[1672741391831,3.45888245,16764.0,16763.0,0.25713954]
[1672741392335,4.34061533,16764.0,16763.0,0.25713954]
[1672741393374,3.45888245,16764.0,16763.0,0.25713954]
[1672741395189,3.45888245,16764.0,16763.0,0.25707502]
[1672741398190,3.45876994,16764.0,16763.0,0.25707502]
[1672741400935,3.15876994,16764.0,16763.0,0.25707502]
[1672741401192,3.15876994,16764.0,16763.0,0.25699698]
[1672741401446,3.45876994,16764.0,16763.0,0.25699698]
[1672741401689,3.15876994,16764.0,16763.0,0.25699698]
[1672741401941,3.45876994,16764.0,16763.0,0.25699698]
[1672741403317,3.15876994,16764.0,16763.0,0.25699698]
[1672741403743,3.45876994,16764.0,16763.0,0.25699698]
[1672741404267,3.15876994,16764.0,16763.0,0.25699698]
[1672741405546,3.45876994,16764.0,16763.0,0.25699698]
[1672741406267,4.34050282,16764.0,16763.0,0.25699698]
[1672741406521,3.45876994,16764.0,16763.0,0.25699698]
[1672741406768,4.34050282,16764.0,16763.0,0.25699698]
[1672741408631,4.04050282,16764.0,16763.0,0.25699698]
[1672741408907,2.54446094,16764.0,16763.0,0.25699698]
[1672741409924,2.54446094,16764.0,16763.0,0.07879698]
[1672741410171,3.15876994,16764.0,16763.0,0.07879698]
[1672741412169,2.54446094,16764.0,16763.0,0.07879698]
[1672741413909,3.15876994,16764.0,16763.0,0.07879698]
[1672741414434,3.72619382,16764.0,16763.0,0.07879698]
[1672741414698,4.34050282,16764.0,16763.0,0.07879698]
[1672741419734,4.04050282,16764.0,16763.0,0.07879698]
[1672741420479,4.34050282,16764.0,16763.0,0.07879698]
[1672741425776,4.34050282,16764.0,16763.0,0.07868853]
[1672741433022,3.42619382,16764.0,16763.0,0.07868853]
[1672741433830,2.54446094,16764.0,16763.0,0.07868853]
[1672741436371,3.42619382,16764.0,16763.0,0.07868853]
[1672741437827,2.54446094,16764.0,16763.0,0.07868853]
[1672741439543,3.15876994,16764.0,16763.0,0.07868853]
[1672741440267,2.54446094,16764.0,16763.0,0.07868853]
[1672741446376,1.92639888,16764.0,16763.0,0.07868853]
[1672741446858,1.92639888,16764.0,16763.0,0.07857084]
[1672741451704,1.92639888,16764.0,16763.0,0.07357084]
[1672741457266,2.54070788,16764.0,16763.0,0.07357084]
[1672741457798,1.92639888,16764.0,16763.0,0.07357084]
[1672741465965,2.53082032,16764.0,16763.0,0.07357084]
[1672741466205,1.92639888,16764.0,16763.0,0.07357084]
[1672741466703,2.53085773,16764.0,16763.0,0.07357084]
[1672741467690,2.53085773,16764.0,16763.0,0.8006063]
[1672741468188,2.53085773,16764.0,16763.0,0.07357084]
[1672741469192,2.53085773,16764.0,16763.0,0.25177084]
[1672741470403,2.53085773,16764.0,16763.0,0.9788063]
[1672741471152,2.53085773,16764.0,16763.0,0.25177084]
[1672741471412,2.53085773,16764.0,16763.0,0.9788063]
[1672741472419,2.53085773,16764.0,16763.0,0.2516579]
[1672741472924,2.53085773,16764.0,16763.0,0.97869336]
[1672741473197,2.53085773,16764.0,16763.0,0.2516579]
[1672741473481,2.53085773,16764.0,16763.0,0.97869336]
[1672741473998,2.53085773,16764.0,16763.0,0.2516579]
[1672741474247,2.53085773,16764.0,16763.0,1.59300236]
[1672741475262,1.93434173,16764.0,16763.0,1.59300236]
[1672741475539,1.33782573,16764.0,16763.0,1.59300236]
[1672741475796,1.32988288,16764.0,16763.0,1.59300236]
[1672741476313,1.93434173,16764.0,16763.0,1.59300236]
[1672741477054,1.93434173,16764.0,16763.0,0.97869336]
[1672741477814,1.93434173,16764.0,16763.0,1.59300236]
[1672741478826,1.93434173,16764.0,16763.0,0.97869336]
[1672741479063,1.93434173,16764.0,16763.0,0.97913113]
[1672741480313,1.93434173,16764.0,16763.0,0.1116579]
[1672741480812,1.32988288,16764.0,16763.0,0.1116579]
[1672741481065,1.32988288,16764.0,16763.0,0.18420382]
[1672741494917,1.32988288,16764.0,16763.0,0.90537816]
[1672741495174,1.32988288,16764.0,16763.0,0.18420382]
[1672741495434,1.32988288,16764.0,16763.0,0.90537816]
[1672741497748,1.93457217,16764.0,16763.0,0.90537816]
[1672741497989,1.32988288,16764.0,16763.0,0.90537816]
[1672741498495,1.93456563,16764.0,16763.0,0.90537816]
[1672741498742,1.93455673,16764.0,16763.0,0.90537816]
[1672741498996,1.32988288,16764.0,16763.0,0.90537816]
[1672741500012,1.93458105,16764.0,16763.0,0.90537816]
[1672741502586,1.93458105,16764.0,16763.0,0.90530958]
[1672741503573,1.93458105,16764.0,16763.0,0.18413524]
[1672741503820,1.93458105,16764.0,16763.0,0.90530958]
[1672741505315,1.93458105,16764.0,16763.0,0.18413524]
[1672741510121,1.32988288,16764.0,16763.0,0.18413524]
[1672741510882,1.93444335,16764.0,16763.0,0.18413524]
[1672741511188,1.32988288,16764.0,16763.0,0.18413524]
[1672741511391,1.93444626,16764.0,16763.0,0.18413524]
[1672741512442,1.93434721,16764.0,16763.0,0.90530958]
[1672741513470,1.93434721,16764.0,16763.0,1.51961858]
[1672741513756,1.33783121,16764.0,16763.0,1.51961858]
[1672741514307,1.33783121,16764.0,16763.0,1.40802926]
[1672741514582,1.33783121,16764.0,16763.0,0.79372026]
[1672741516429,0.73326783,16764.0,16763.0,0.79372026]
[1672741518190,1.32978383,16764.0,16763.0,0.79372026]
[1672741518708,0.73326783,16764.0,16763.0,0.79372026]
[1672741519220,0.73326783,16764.0,16763.0,0.97132026]
[1672741519468,0.73326783,16764.0,16763.0,1.58562926]
[1672741534622,0.73326783,16764.0,16763.0,1.58551194]
[1672741535111,1.33783121,16764.0,16763.0,1.58551194]
[1672741537638,1.33783121,16764.0,16763.0,0.97120294]
[1672741539135,0.73326783,16764.0,16763.0,0.97120294]
[1672741539370,1.33783121,16764.0,16763.0,0.97120294]
[1672741540688,1.33783121,16764.0,16763.0,0.2500286]
[1672741540938,1.93434721,16764.0,16763.0,0.2500286]
[1672741541746,1.33783121,16764.0,16763.0,0.2500286]
[1672741542258,1.33783121,16764.0,16763.0,0.97120294]
[1672741544753,1.33783121,16764.0,16763.0,0.2500286]
[1672741545047,1.33783121,16764.0,16763.0,0.97120294]
[1672741547298,1.33783121,16764.0,16763.0,0.2500286]
[1672741547554,1.93434721,16764.0,16763.0,0.2500286]
[1672741549584,1.93434721,16764.0,16763.0,0.24858579]
[1672741550589,1.32978383,16764.0,16763.0,0.24858579]
[1672741552838,1.93400637,16764.0,16763.0,0.24858579]
[1672741553337,1.32978383,16764.0,16763.0,0.24858579]
[1672741554609,1.3374228,16764.0,16763.0,0.96976013]
[1672741555611,0.73326783,16764.0,16763.0,0.96976013]
[1672741555861,0.73326783,16764.0,16763.0,0.96965095]
[1672741564729,0.73317036,16764.0,16763.0,0.96965095]
[1672741574764,0.60817036,16764.0,16763.0,0.96965095]
[1672741575040,0.72217036,16764.0,16763.0,0.97265095]
[1672741587602,0.72217036,16764.0,16763.0,0.97256126]
[1672741592084,0.72217036,16764.0,16763.0,0.25138692]
[1672741592356,0.72217036,16764.0,16763.0,0.97256126]
[1672741593143,0.72217036,16764.0,16763.0,1.58687026]
[1672741594714,1.32632533,16764.0,16763.0,1.58687026]
[1672741594972,0.72217036,16764.0,16763.0,1.58687026]
[1672741600628,0.72205475,16764.0,16763.0,1.58687026]
[1672741608288,1.25916921,16764.0,16763.0,1.58687026]
[1672741608547,1.25916533,16764.0,16763.0,1.58687026]
[1672741610325,0.66264933,16764.0,16763.0,1.58687026]
[1672741612921,0.66264933,16764.0,16763.0,1.58730803]
[1672741615961,0.12553875,16764.0,16763.0,1.58730803]
[1672741616464,0.72205475,16764.0,16763.0,1.58730803]
[1672741617448,0.72205475,16764.0,16763.0,0.97299903]
[1672741618206,0.72205475,16764.0,16763.0,0.25182469]
[1672741618465,0.72205475,16764.0,16763.0,0.86613369]
[1672741618716,0.72205475,16764.0,16763.0,1.58730803]
[1672741619196,1.32620972,16764.0,16763.0,0.86613369]
[1672741619450,1.32620972,16764.0,16763.0,0.25182469]
[1672741624419,1.32620972,16764.0,16763.0,0.251739]
[1672741624665,1.32620972,16764.0,16763.0,0.866048]
[1672741627347,1.32620972,16764.0,16763.0,1.58722234]
[1672741628104,0.72205475,16764.0,16763.0,1.58722234]
[1672741628611,1.32620972,16764.0,16763.0,1.58722234]
[1672741629110,1.32620972,16764.0,16763.0,1.40962234]
[1672741629356,0.72205475,16764.0,16763.0,0.79531334]
[1672741629626,1.32620972,16764.0,16763.0,0.074139]
[1672741629844,1.32620972,16764.0,16763.0,0.688448]
[1672741630108,1.32620972,16764.0,16763.0,0.074139]
[1672741630375,1.32620972,16764.0,16763.0,0.688448]
[1672741630639,0.72205475,16764.0,16763.0,0.688448]
[1672741630916,1.32620972,16764.0,16763.0,1.40962234]
[1672741631134,0.72205475,16764.0,16763.0,0.628177]
[1672741631400,0.72205475,16764.0,16763.0,1.34935134]
[1672741631641,0.72205475,16764.0,16763.0,0.79531334]
[1672741631889,0.72205475,16764.0,16763.0,0.688448]
[1672741632153,0.72205475,16764.0,16763.0,1.40962234]
[1672741633156,0.72205475,16764.0,16763.0,0.79531334]
[1672741633417,0.72205475,16764.0,16763.0,0.688448]
[1672741633637,0.72205475,16764.0,16763.0,1.40962234]
[1672741633858,0.72205475,16764.0,16763.0,1.34935134]
[1672741634098,0.72205475,16764.0,16763.0,0.79531334]
[1672741634342,0.72205475,16764.0,16763.0,0.688448]
[1672741634584,0.72205475,16764.0,16763.0,1.40962234]
[1672741635300,1.32620972,16764.0,16763.0,0.79531334]
[1672741635570,1.32620972,16764.0,16763.0,0.074139]
[1672741635833,0.72205475,16764.0,16763.0,0.074139]
[1672741637464,1.32620972,16764.0,16763.0,0.074139]
[1672741637956,0.72205475,16764.0,16763.0,0.074139]
[1672741638674,1.32620972,16764.0,16763.0,0.074139]
[1672741638906,1.32620972,16764.0,16763.0,0.07370123]
[1672741639658,0.72205475,16764.0,16763.0,0.07370123]
[1672741639912,1.32620972,16764.0,16763.0,0.07370123]
[1672741640137,0.72205475,16764.0,16763.0,0.07370123]
[1672741641655,1.31857075,16764.0,16763.0,0.07370123]
[1672741646669,1.31857075,16764.0,16763.0,0.68801023]
[1672741646916,1.31857075,16764.0,16763.0,1.40918457]
[1672741647467,1.31857075,16764.0,16763.0,0.79487557]
[1672741647672,1.31857075,16764.0,16763.0,1.40918457]
[1672741648625,1.31857075,16764.0,16763.0,1.40911962]
[1672741649657,1.31857075,16764.0,16763.0,1.34884862]
[1672741649903,1.31857075,16764.0,16763.0,0.79481062]
[1672741650153,1.31857075,16764.0,16763.0,1.40911962]
[1672741651952,1.31857075,16764.0,16763.0,0.79481062]
[1672741652165,0.72205475,16764.0,16763.0,1.40911962]
[1672741653620,0.72205475,16764.0,16763.0,0.79481062]
[1672741653866,0.72205475,16764.0,16763.0,1.40911962]
[1672741654119,0.72205475,16764.0,16763.0,0.79481062]
[1672741654356,0.72205475,16764.0,16763.0,1.40911962]
[1672741654819,0.72205475,16764.0,16763.0,0.79481062]
[1672741655093,0.72205475,16764.0,16763.0,1.40911962]
[1672741655567,0.72205475,16764.0,16763.0,1.34884862]
[1672741656626,0.72205475,16764.0,16763.0,0.79481062]
[1672741656867,0.72205475,16764.0,16763.0,1.40911962]
[1672741658406,0.72205475,16764.0,16763.0,0.79481062]
[1672741658647,0.72205475,16764.0,16763.0,1.40911962]
[1672741658869,0.72205475,16764.0,16763.0,0.79481062]
[1672741659141,0.72205475,16764.0,16763.0,0.07363628]
[1672741659412,1.32620972,16764.0,16763.0,0.68794528]
[1672741660972,1.32620972,16764.0,16763.0,1.40911962]
[1672741661423,0.72205475,16764.0,16763.0,1.40911962]
[1672741662107,0.72205475,16764.0,16763.0,0.79481062]
[1672741662351,1.32620972,16764.0,16763.0,0.68794528]
[1672741662617,0.72205475,16764.0,16763.0,1.40911962]
[1672741664606,0.72205475,16764.0,16763.0,0.79481062]
[1672741664853,0.72205475,16764.0,16763.0,0.68794528]
[1672741665095,0.72205475,16764.0,16763.0,1.40911962]
[1672741665841,0.72205475,16764.0,16763.0,0.79481062]
[1672741666090,0.72205475,16764.0,16763.0,0.68794528]
[1672741666334,0.72205475,16764.0,16763.0,0.79481062]
[1672741666587,0.72205475,16764.0,16763.0,0.68794528]
[1672741666839,1.32620972,16764.0,16763.0,1.40911962]
[1672741667093,0.72205475,16764.0,16763.0,1.40911962]
[1672741668105,0.72205475,16764.0,16763.0,0.79481062]
[1672741668360,0.72205475,16764.0,16763.0,1.40911962]
[1672741668607,0.72205475,16764.0,16763.0,0.68794528]
[1672741668861,1.32620972,16764.0,16763.0,1.40911962]
[1672741669108,1.32620972,16764.0,16763.0,0.68794528]
[1672741669606,0.72205475,16764.0,16763.0,1.40911962]
[1672741670373,0.72205475,16764.0,16763.0,0.79481062]
[1672741670631,0.72205475,16764.0,16763.0,1.40911962]
[1672741671407,1.25925753,16764.0,16763.0,1.40911962]
[1672741671699,1.25925753,16764.0,16763.0,0.79481062]
[1672741671910,0.72205475,16764.0,16763.0,0.79481062]
[1672741672157,0.72205475,16764.0,16763.0,0.7947141]
[1672741675718,0.72205475,16764.0,16763.0,0.07353976]
[1672741676446,0.72205475,16764.0,16763.0,0.7947141]
[1672741677802,0.72205475,16764.0,16763.0,0.07353976]
[1672741678105,0.72205475,16764.0,16763.0,0.7947141]
[1672741679841,0.72205475,16764.0,16763.0,0.79299211]
[1672741680345,0.72205475,16764.0,16763.0,0.07181777]
[1672741680827,0.72205475,16764.0,16763.0,0.79299211]
[1672741681039,0.72205475,16764.0,16763.0,0.07181777]
[1672741682548,0.72205475,16764.0,16763.0,0.79299211]
[1672741682864,0.72205475,16764.0,16763.0,0.07181777]
[1672741685790,1.32620972,16764.0,16763.0,0.07181777]
[1672741689104,0.72205475,16764.0,16763.0,0.07181777]
[1672741691248,0.72205475,16764.0,16763.0,0.79299211]
[1672741691726,0.72205475,16764.0,16763.0,1.40730111]
[1672741692769,1.31857075,16764.0,16763.0,0.79299211]
[1672741693600,1.31857075,16764.0,16763.0,1.40730111]
[1672741693884,1.31857075,16764.0,16763.0,0.79299211]
[1672741694106,1.31857075,16764.0,16763.0,1.40730111]
[1672741694878,1.31857075,16764.0,16763.0,0.79299211]
[1672741695098,1.31857075,16764.0,16763.0,1.40730111]
[1672741696415,1.31857075,16764.0,16763.0,0.79299211]
[1672741696683,1.31857075,16764.0,16763.0,1.40730111]
[1672741698340,1.31857075,16764.0,16763.0,0.79299211]
[1672741698562,1.31857075,16764.0,16763.0,1.40730111]
[1672741698808,1.31857075,16764.0,16763.0,0.68612677]
[1672741699022,1.31857075,16764.0,16763.0,1.40730111]
[1672741699286,1.31857075,16764.0,16763.0,0.79299211]
[1672741699536,1.31857075,16764.0,16763.0,1.40730111]
[1672741699789,1.31857075,16764.0,16763.0,0.68612677]
[1672741700052,1.31857075,16764.0,16763.0,1.40730111]
[1672741701043,1.31857075,16764.0,16763.0,0.79299211]
[1672741701320,1.31857075,16764.0,16763.0,1.40730111]
[1672741701844,1.31857075,16764.0,16763.0,0.79299211]
[1672741702108,1.31857075,16764.0,16763.0,1.40730111]
[1672741702633,1.31857075,16764.0,16763.0,0.79299211]
[1672741702905,1.31857075,16764.0,16763.0,0.07181777]
[1672741703145,1.31857075,16764.0,16763.0,0.68612677]
[1672741703393,1.31857075,16764.0,16763.0,1.40730111]
[1672741704424,1.85571357,16764.0,16763.0,1.40720091]
[1672741704910,1.31857075,16764.0,16763.0,1.40720091]
[1672741708433,1.31857075,16764.0,16763.0,0.07171757]
[1672741709681,1.31857075,16764.0,16763.0,0.68602657]
[1672741709900,1.31857075,16764.0,16763.0,0.07171757]
[1672741711622,1.31857075,16764.0,16763.0,0.68602657]
[1672741711871,1.31857075,16764.0,16763.0,1.40720091]
[1672741718687,1.85576607,16764.0,16763.0,1.40720091]
[1672741718937,1.31857075,16764.0,16763.0,1.40720091]
[1672741719187,1.85582242,16764.0,16763.0,1.40720091]
[1672741722808,1.85582242,16764.0,16763.0,0.79289191]
[1672741726037,1.85582242,16764.0,16763.0,0.79281069]
[1672741728354,1.85582242,16764.0,16763.0,0.07163635]
[1672741728855,1.25930642,16764.0,16763.0,0.07163635]
[1672741729353,1.25930642,16764.0,16763.0,0.79281069]
[1672741729866,1.25930642,16764.0,16763.0,0.07163635]
[1672741730115,1.25930642,16764.0,16763.0,0.79281069]
[1672741734560,1.25930642,16764.0,16763.0,0.07163635]
[1672741734821,0.72205475,16764.0,16763.0,0.07163635]
[1672741735577,0.72205475,16764.0,16763.0,0.79281069]
[1672741735834,1.25921514,16764.0,16763.0,0.79281069]
[1672741736113,1.25921514,16764.0,16763.0,0.07163635]
[1672741737909,0.72205475,16764.0,16763.0,0.07163635]
[1672741740499,0.72194461,16764.0,16763.0,0.07163635]
[1672741742023,1.32609958,16764.0,16763.0,0.07163635]
[1672741747464,1.94040858,16764.0,16763.0,0.07163635]
[1672741753546,2.53692458,16764.0,16763.0,0.07163635]
[1672741756643,1.31846061,16764.0,16763.0,0.07163635]
[1672741756896,1.92261558,16764.0,16763.0,0.07163635]
[1672741758426,1.31846061,16764.0,16763.0,0.07163635]
[1672741758690,1.92261558,16764.0,16763.0,0.07163635]
[1672741759246,1.31846061,16764.0,16763.0,0.07163635]
[1672741759449,2.53692458,16764.0,16763.0,0.07163635]
[1672741759944,2.53692458,16764.0,16763.0,0.07081223]
[1672741760707,1.92261558,16764.0,16763.0,0.07081223]
[1672741761197,2.53692458,16764.0,16763.0,0.07081223]
[1672741761445,1.92261558,16764.0,16763.0,0.07081223]
[1672741761699,2.53692458,16764.0,16763.0,0.07081223]
[1672741762206,1.92261558,16764.0,16763.0,0.07081223]
[1672741763179,1.31846061,16764.0,16763.0,0.07081223]
[1672741769048,1.30846679,16764.0,16763.0,0.07081223]
[1672741769600,1.30846679,16764.0,16763.0,0.06581223]
[1672741772139,1.91262176,16764.0,16763.0,0.06581223]
[1672741781497,2.52693076,16764.0,16763.0,0.06581223]
[1672741782260,2.52693076,16764.0,16763.0,0.003]
[1672741783482,2.52693076,16764.0,16763.0,0.05579004]
[1672741783754,1.91262176,16764.0,16763.0,0.05579004]